Workbook

Sheet FT240-31
A1: Calculate impedance of ferrite cored inductor
A3: Reference:
A4: A method for estimating the impedance of a ferrite cored toroidal inductor at RF
A6: Inputs:
A7: Al (nH for 1t) | B7: 2050 | D7: 2631803802
A8: N | B8: 12
A9: Cs (pF) | B9: 2.5
A11: Constants:
A12: Mix | B12: =Mix!B1 -> #31
A13: µi | B13: =Mix!B2 -> 1500
A15: Calculated values:
A16: 2*pi*N^2*Al | B16: =2*PI()*$B$8^2*$B$7*0.000000001 -> 0.001854796303
A18: f (MHz) | B18: 1 | C18: 1.2 | D18: 1.8 | E18: 2 | F18: 2.5 | G18: 3 | H18: 3.5 | I18: 4 | J18: 4.5 | K18: 5 | L18: 5.5 | M18: 6 | N18: =M18+1 -> 7 | O18: 8 | P18: 9 | Q18: 10 | R18: 11 | S18: 12 | T18: 13 | U18: 14 | V18: 15 | W18: 16 | X18: 17 | Y18: 18 | Z18: 19 | AA18: 22 | AB18: 24 | AC18: 26 | AD18: 28 | AE18: 30
A19: µ'' | B19: =csinterpolate(CSTableU2,'FT240-31'!B18*1000000) -> 437.7802272 | C19: =csinterpolate(CSTableU2,'FT240-31'!C18*1000000) -> 552.2428332 | D19: =csinterpolate(CSTableU2,'FT240-31'!D18*1000000) -> 702.0842437 | E19: =csinterpolate(CSTableU2,'FT240-31'!E18*1000000) -> 721.8629082 | F19: =csinterpolate(CSTableU2,'FT240-31'!F18*1000000) -> 731.0497597 | G19: =csinterpolate(CSTableU2,'FT240-31'!G18*1000000) -> 710.2466193 | H19: =csinterpolate(CSTableU2,'FT240-31'!H18*1000000) -> 683.695721 | I19: =csinterpolate(CSTableU2,'FT240-31'!I18*1000000) -> 653.7174321 | J19: =csinterpolate(CSTableU2,'FT240-31'!J18*1000000) -> 621.7319268 | K19: =csinterpolate(CSTableU2,'FT240-31'!K18*1000000) -> 589.4410499 | L19: =csinterpolate(CSTableU2,'FT240-31'!L18*1000000) -> 558.5488265 | M19: =csinterpolate(CSTableU2,'FT240-31'!M18*1000000) -> 530.0402996 | N19: =csinterpolate(CSTableU2,'FT240-31'!N18*1000000) -> 480.4898316 | O19: =csinterpolate(CSTableU2,'FT240-31'!O18*1000000) -> 441.060066 | P19: =csinterpolate(CSTableU2,'FT240-31'!P18*1000000) -> 410.6888137 | Q19: =csinterpolate(CSTableU2,'FT240-31'!Q18*1000000) -> 387.3106827 | R19: =csinterpolate(CSTableU2,'FT240-31'!R18*1000000) -> 368.8332163 | S19: =csinterpolate(CSTableU2,'FT240-31'!S18*1000000) -> 353.178613 | T19: =csinterpolate(CSTableU2,'FT240-31'!T18*1000000) -> 339.0303491 | U19: =csinterpolate(CSTableU2,'FT240-31'!U18*1000000) -> 326.1891567 | V19: =csinterpolate(CSTableU2,'FT240-31'!V18*1000000) -> 314.5449919 | W19: =csinterpolate(CSTableU2,'FT240-31'!W18*1000000) -> 303.9878086 | X19: =csinterpolate(CSTableU2,'FT240-31'!X18*1000000) -> 294.4074964 | Y19: =csinterpolate(CSTableU2,'FT240-31'!Y18*1000000) -> 285.6940095 | Z19: =csinterpolate(CSTableU2,'FT240-31'!Z18*1000000) -> 277.7372905 | AA19: =csinterpolate(CSTableU2,'FT240-31'!AA18*1000000) -> 257.3123629 | AB19: =csinterpolate(CSTableU2,'FT240-31'!AB18*1000000) -> 245.7506099 | AC19: =csinterpolate(CSTableU2,'FT240-31'!AC18*1000000) -> 235.547223 | AD19: =csinterpolate(CSTableU2,'FT240-31'!AD18*1000000) -> 226.5394557 | AE19: =csinterpolate(CSTableU2,'FT240-31'!AE18*1000000) -> 218.5646095
A20: µ' | B20: =csinterpolate(CSTableU1,'FT240-31'!B18*1000000) -> 1400.612187 | C20: =csinterpolate(CSTableU1,'FT240-31'!C18*1000000) -> 1405.263338 | D20: =csinterpolate(CSTableU1,'FT240-31'!D18*1000000) -> 1167.156493 | E20: =csinterpolate(CSTableU1,'FT240-31'!E18*1000000) -> 1090.881729 | F20: =csinterpolate(CSTableU1,'FT240-31'!F18*1000000) -> 904.1348765 | G20: =csinterpolate(CSTableU1,'FT240-31'!G18*1000000) -> 768.1087633 | H20: =csinterpolate(CSTableU1,'FT240-31'!H18*1000000) -> 674.3469499 | I20: =csinterpolate(CSTableU1,'FT240-31'!I18*1000000) -> 596.8788543 | J20: =csinterpolate(CSTableU1,'FT240-31'!J18*1000000) -> 533.834143 | K20: =csinterpolate(CSTableU1,'FT240-31'!K18*1000000) -> 484.1955424 | L20: =csinterpolate(CSTableU1,'FT240-31'!L18*1000000) -> 445.0688705 | M20: =csinterpolate(CSTableU1,'FT240-31'!M18*1000000) -> 413.3839843 | N20: =csinterpolate(CSTableU1,'FT240-31'!N18*1000000) -> 363.3365704 | O20: =csinterpolate(CSTableU1,'FT240-31'!O18*1000000) -> 326.444129 | P20: =csinterpolate(CSTableU1,'FT240-31'!P18*1000000) -> 298.6885164 | Q20: =csinterpolate(CSTableU1,'FT240-31'!Q18*1000000) -> 277.1427203 | R20: =csinterpolate(CSTableU1,'FT240-31'!R18*1000000) -> 260.3671935 | S20: =csinterpolate(CSTableU1,'FT240-31'!S18*1000000) -> 247.0290933 | T20: =csinterpolate(CSTableU1,'FT240-31'!T18*1000000) -> 235.7956128 | U20: =csinterpolate(CSTableU1,'FT240-31'!U18*1000000) -> 225.4326031 | V20: =csinterpolate(CSTableU1,'FT240-31'!V18*1000000) -> 215.534732 | W20: =csinterpolate(CSTableU1,'FT240-31'!W18*1000000) -> 206.1109628 | X20: =csinterpolate(CSTableU1,'FT240-31'!X18*1000000) -> 197.1733795 | Y20: =csinterpolate(CSTableU1,'FT240-31'!Y18*1000000) -> 188.7340516 | Z20: =csinterpolate(CSTableU1,'FT240-31'!Z18*1000000) -> 180.8050486 | AA20: =csinterpolate(CSTableU1,'FT240-31'!AA18*1000000) -> 160.1970262 | AB20: =csinterpolate(CSTableU1,'FT240-31'!AB18*1000000) -> 149.0234957 | AC20: =csinterpolate(CSTableU1,'FT240-31'!AC18*1000000) -> 139.4739284 | AD20: =csinterpolate(CSTableU1,'FT240-31'!AD18*1000000) -> 131.120051 | AE20: =csinterpolate(CSTableU1,'FT240-31'!AE18*1000000) -> 123.5336065
A21: Rl | B21: =B19/$B$13*$B$16*B18*1000000 -> 541.3287645 | C21: 819.4383721 | D21: 1562.667911 | E21: 1785.211538 | F21: 2259.913986 | G21: 2634.725607 | H21: 2958.938023 | I21: 3233.367136 | J21: 3459.558237 | K21: 3644.310266 | L21: 3798.64576 | M21: 3932.467152 | N21: 4158.983561 | O21: 4363.075092 | P21: 4570.46456 | Q21: 4789.216148 | R21: 5016.81023 | S21: 5240.595084 | T21: 5449.879396 | U21: 5646.801457 | V21: 5834.16888 | W21: 6014.244944 | X21: 6188.747272 | Y21: 6358.850309 | Z21: 6525.183928 | AA21: 6999.842949 | AB21: 7293.077162 | AC21: 7572.796719 | AD21: 7843.444837 | AE21: 8107.856592
A22: Xl | B22: =B20/$B$13*$B$16*B18*1000000 -> 1731.900204 | C22: 2085.181794 | D22: 2597.805058 | E22: 2697.817863 | F22: 2794.97671 | G22: 2849.370588 | H22: 2918.477869 | I22: 2952.236512 | J22: 2970.460784 | K22: 2993.613673 | L22: 3026.877683 | M22: 3066.972342 | N22: 3144.938194 | O22: 3229.265938 | P22: 3324.038135 | Q22: 3426.955287 | R22: 3541.472791 | S22: 3665.509191 | T22: 3790.391201 | U22: 3902.561215 | V22: 3997.73024 | W22: 4077.801086 | X22: 4144.786493 | Y22: 4200.758653 | Z22: 4247.849453 | AA22: 4357.948494 | AB22: 4422.53166 | AC22: 4484.059262 | AD22: 4539.751736 | AE22: 4582.59353
A23: Yl | B23: =IMDIV(1,COMPLEX(B21,B22)) -> 0.000164411928287576-0.000526011309277861i | C23: 0.000163252219672524-0.000415419350563492i | D23: 0.000170030373797759-0.000282661313921868i | E23: 0.00017058549183374-0.000257789386502038i | F23: 0.000174928046886935-0.000216344436148569i | G23: 0.000174940543661163-0.000189192543821886i | H23: 0.000171305946196714-0.000168963529771285i | I23: 0.000168664884355141-0.000154000028123634i | J23: 0.000166387466802815-0.000142864322915724i | K23: 0.000163842832326242-0.000134588470021215i | L23: 0.000161016207500858-0.000128302662551267i | M23: 0.000158116990524192-0.000123317097921162i | N23: 0.0001529725297007-0.00011567469413641i | O23: 0.000148078631474946-0.000109598223897722i | P23: 0.000143102598135769-0.000104076617875066i | Q23: 0.000138094907102783-0.0000988147240165708i | R23: 0.000133035139177882-0.0000939123275801734i | S23: 0.000128132553056778-0.0000896217019893704i | T23: 0.000123669065281477-0.0000860118367364617i | U23: 0.000119848022378615-0.0000828281722765109i | V23: 0.000116638183583404-0.0000799236366337985i | W23: 0.000113907008673722-0.00007723166049861i | X23: 0.000111549463625726-0.0000747079642866679i | Y23: 0.000109481791534531-0.0000723254300291486i | Z23: 0.000107636781859687-0.000070070797992118i | AA23: 0.000102954739510338-0.000064097359790053i | AB23: 0.000100251569040218-0.0000607926843791712i | AC23: 0.0000977714907153548-0.0000578931634782878i | AD23: 0.00009550155780029-0.0000552758860179861i | AE23: 0.0000934757908270689-0.0000528328972555236i
A24: Yc | B24: =COMPLEX(0,2*PI()*B18*1000000*$B$9*0.000000000001) -> 0.000015707963267949i | C24: 0.0000188495559215388i | D24: 0.0000282743338823081i | E24: 0.0000314159265358979i | F24: 0.0000392699081698724i | G24: 0.0000471238898038469i | H24: 0.0000549778714378214i | I24: 0.0000628318530717959i | J24: 0.0000706858347057703i | K24: 0.0000785398163397448i | L24: 0.0000863937979737193i | M24: 0.0000942477796076938i | N24: 0.000109955742875643i | O24: 0.000125663706143592i | P24: 0.000141371669411541i | Q24: 0.00015707963267949i | R24: 0.000172787595947439i | S24: 0.000188495559215388i | T24: 0.000204203522483337i | U24: 0.000219911485751286i | V24: 0.000235619449019234i | W24: 0.000251327412287183i | X24: 0.000267035375555132i | Y24: 0.000282743338823081i | Z24: 0.00029845130209103i | AA24: 0.000345575191894877i | AB24: 0.000376991118430775i | AC24: 0.000408407044966673i | AD24: 0.000439822971502571i | AE24: 0.000471238898038469i
A25: Z | B25: =IMDIV(1,IMSUM(B23,B24)) -> 571.985381543738+1775.33380400467i | C25: 887.63160944437+2156.22112692355i | D25: 1816.11632016602+2717.14009543441i | E25: 2123.17959647916+2817.54037941834i | F25: 2823.45983098896+2858.10552245138i | G25: 3444.54575627583+2797.3045530571i | H25: 4046.10739926185+2692.24872709999i | I25: 4588.33713932535+2480.12693996261i | J25: 5058.21183181392+2194.24028793407i | K25: 5463.99121499263+1869.16538843712i | L25: 5816.51905225857+1513.907904411i | M25: 6117.6561877996+1124.71211642683i | N25: 6527.99740383109+244.052308319463i | O25: 6674.60399625977-724.147238072409i | P25: 6543.54575787861-1705.36300144481i | Q25: 6147.11279650865-2593.58562269542i | R25: 5561.74963285686-3297.50844471669i | S25: 4891.67741016029-3774.67710046803i | T25: 4226.07885489515-4038.90320366231i | U25: 3614.73795339768-4134.57181987843i | V25: 3081.94410291992-4113.9683085642i | W25: 2631.61091971028-4022.16059236812i | X25: 2256.57358348703-3890.65927833624i | Y25: 1945.92924675632-3739.96768799925i | Z25: 1688.59674246172-3582.81405854278i | AA25: 1146.11345607434-3133.46944974377i | AB25: 911.114283597163-2873.69975825413i | AC25: 738.348042512719-2647.00104679738i | AD25: 608.30176775077-2449.39116462212i | AE25: 508.569788698907-2276.403863779i
A26: R | B26: =IMREAL(B25) -> 571.9853815 | C26: 887.6316094 | D26: 1816.11632 | E26: 2123.179596 | F26: 2823.459831 | G26: 3444.545756 | H26: 4046.107399 | I26: 4588.337139 | J26: 5058.211832 | K26: 5463.991215 | L26: 5816.519052 | M26: 6117.656188 | N26: 6527.997404 | O26: 6674.603996 | P26: 6543.545758 | Q26: 6147.112797 | R26: 5561.749633 | S26: 4891.67741 | T26: 4226.078855 | U26: 3614.737953 | V26: 3081.944103 | W26: 2631.61092 | X26: 2256.573583 | Y26: 1945.929247 | Z26: 1688.596742 | AA26: 1146.113456 | AB26: 911.1142836 | AC26: 738.3480425 | AD26: 608.3017678 | AE26: 508.5697887
A27: X | B27: =IMAGINARY(B25) -> 1775.333804 | C27: 2156.221127 | D27: 2717.140095 | E27: 2817.540379 | F27: 2858.105522 | G27: 2797.304553 | H27: 2692.248727 | I27: 2480.12694 | J27: 2194.240288 | K27: 1869.165388 | L27: 1513.907904 | M27: 1124.712116 | N27: 244.0523083 | O27: -724.1472381 | P27: -1705.363001 | Q27: -2593.585623 | R27: -3297.508445 | S27: -3774.6771 | T27: -4038.903204 | U27: -4134.57182 | V27: -4113.968309 | W27: -4022.160592 | X27: -3890.659278 | Y27: -3739.967688 | Z27: -3582.814059 | AA27: -3133.46945 | AB27: -2873.699758 | AC27: -2647.001047 | AD27: -2449.391165 | AE27: -2276.403864
A28: |Z| | B28: =IMABS(B25) -> 1865.201703 | C28: 2331.776023 | D28: 3268.199625 | E28: 3527.949176 | F28: 4017.548082 | G28: 4437.319938 | H28: 4859.957643 | I28: 5215.732676 | J28: 5513.6374 | K28: 5774.857509 | L28: 6010.30873 | M28: 6220.184449 | N28: 6532.557817 | O28: 6713.771498 | P28: 6762.11905 | Q28: 6671.857471 | R28: 6465.803966 | S28: 6178.729246 | T28: 5845.723358 | U28: 5491.904461 | V28: 5140.341885 | W28: 4806.573818 | X28: 4497.70541 | Y28: 4215.922075 | Z28: 3960.797336 | AA28: 3336.496193 | AB28: 3014.677352 | AC28: 2748.04883 | AD28: 2523.79637 | AE28: 2332.521764
A32: Module | B32: Version | C32: Date
A33: CubicSpline | B33: =CubicSpline_version("v") -> 1.03 | C33: =CubicSpline_version("d") -> 2010-07-06
A35: Copyright: Owen Duffy 2010. All rights reserved.

Sheet Mix
A1: Mix | B1: #31
A2: µi | B2: 1500
A5: # #31 mix u' | E5: CSTable | J5: # #31 mix u'' | N5: CSTable
A6: 100330 | B6: 1405.71 | E6: =cstable(A6:A23,B6:B23) -> 100330 | F6: 1405.71 | G6: 0 | J6: 99770.4 | K6: 39.3514 | N6: =cstable(Mix!J6:J26,Mix!K6:K26) -> 99770.4 | O6: 39.3514 | P6: 0
A7: 995581 | B7: 1400.3 | E7: 995581 | F7: 1400.3 | G7: 2.552341076e-10 | J7: 151347 | K7: 54.4292 | N7: 151347 | O7: 54.4292 | P7: -1.558338054e-10
A8: 1240840 | B8: 1399.78 | E8: 1240840 | F8: 1399.78 | G8: -2.277826143e-09 | J8: 232253 | K8: 77.0513 | N8: 232253 | O8: 77.0513 | P8: -4.335825665e-10
A9: 1583050 | B9: 1260.39 | E9: 1583050 | F9: 1260.39 | G9: 5.33267126e-10 | J9: 386479 | K9: 118.294 | N9: 386479 | O9: 118.294 | P9: 9.294925576e-10
A10: 2019810 | B10: 1083.38 | E10: 2019810 | F10: 1083.38 | G10: -8.939484924e-11 | J10: 481489 | K10: 150.898 | N10: 481489 | O10: 150.898 | P10: 6.107059834e-10
A11: 2577320 | B11: 878.712 | E11: 2577320 | F11: 878.712 | G11: 3.118666673e-10 | J11: 613839 | K11: 208.778 | N11: 613839 | O11: 208.778 | P11: 1.50326457e-09
A12: 3327110 | B12: 704.469 | E12: 3327110 | F12: 704.469 | G12: 5.703322742e-11 | J12: 773490 | K12: 302.594 | N12: 773490 | O12: 302.594 | P12: -3.563865222e-10
A13: 4345270 | B13: 551.804 | E13: 4345270 | F13: 551.804 | G13: 5.812819438e-11 | J13: 952444 | K13: 409.072 | N13: 952444 | O13: 409.072 | P13: 2.546609717e-10
A14: 6014070 | B14: 412.57 | E14: 6014070 | F14: 412.57 | G14: 1.714133921e-11 | J14: 1257160 | K14: 579.239 | N14: 1257160 | O14: 579.239 | P14: -1.318971926e-09
A15: 8618280 | B15: 308.45 | E15: 8618280 | F15: 308.45 | G15: 6.611825915e-12 | J15: 1603190 | K15: 673.328 | N15: 1603190 | O15: 673.328 | P15: -2.317014998e-10
A16: 13239300 | B16: 233.272 | E16: 13239300 | F16: 233.272 | G16: 4.528653583e-13 | J16: 2141740 | K16: 729.978 | N16: 2141740 | O16: 729.978 | P16: -2.488156146e-10
A17: 21305700 | B17: 164.534 | E17: 21305700 | F17: 164.534 | G17: 5.502233278e-13 | J17: 2763840 | K17: 721.243 | N17: 2763840 | O17: 721.243 | P17: -2.094124206e-11
A18: 30532100 | B18: 121.59 | E18: 30532100 | F18: 121.59 | G18: 5.630717178e-14 | J18: 3823950 | K18: 664.585 | N18: 3823950 | O18: 664.585 | P18: -1.054810343e-11
A19: 42262900 | B19: 84.7929 | E19: 42262900 | F19: 84.7929 | G19: 1.423086596e-13 | J19: 5291300 | K19: 571.172 | N19: 5291300 | O19: 571.172 | P19: 9.695091661e-12
A20: 55848300 | B20: 60.5254 | E20: 55848300 | F20: 60.5254 | G20: 1.744883943e-14 | J20: 7407780 | K20: 463.196 | N20: 7407780 | O20: 463.196 | P20: 1.032472444e-11
A21: 72958900 | B21: 40.2969 | E21: 72958900 | F21: 40.2969 | G21: 3.622867366e-14 | J21: 11646200 | K21: 358.518 | N21: 11646200 | O21: 358.518 | P21: 1.45610397e-12
A22: 92051100 | B22: 27.461 | E22: 92051100 | F22: 27.461 | G22: 7.21425866e-15 | J22: 21289100 | K22: 261.78 | N22: 21289100 | O22: 261.78 | P22: 3.947350124e-13
A23: 101024000 | B23: 23.0684 | E23: 101024000 | F23: 23.0684 | G23: 0 | J23: 39829700 | K23: 188.931 | N23: 39829700 | O23: 188.931 | P23: 1.75942085e-14
J24: 57071300 | K24: 149.692 | N24: 57071300 | O24: 149.692 | P24: 7.78480564e-14
J25: 78977100 | K25: 122.814 | N25: 78977100 | O25: 122.814 | P25: -4.808725953e-15
J26: 99611200 | K26: 101.954 | N26: 99611200 | O26: 101.954 | P26: 0
Q67: x
